[Event "*** Titled Tuesday Blitz"]
[Site "Chess.com"]
[Date "2021.03.30"]
[Round "6"]
[White "scarabee43"]
[Black "bolence16"]
[Result "1/2-1/2"]
[WhiteElo "2568"]
[BlackElo "2436"]
[TimeControl "180+1"]
[EndTime "11:06:52 PDT"]
[Termination "Game drawn by repetition"]

1. d4 {[%clk 0:03:00.9]} 1... d5 {[%clk 0:03:00]} 2. Nf3 {[%clk 0:03:01]} 2...
Nf6 {[%clk 0:02:59.8]} 3. c4 {[%clk 0:03:01.4]} 3... e6 {[%clk 0:02:58.4]} 4.
Nc3 {[%clk 0:03:01.5]} 4... Nbd7 {[%clk 0:02:58.6]} 5. Bg5 {[%clk 0:03:00.3]}
5... c6 {[%clk 0:02:58.8]} 6. e3 {[%clk 0:03:00.5]} 6... Qa5 {[%clk 0:02:58.9]}
7. cxd5 {[%clk 0:03:00.5]} 7... exd5 {[%clk 0:02:58.9]} 8. Bd3 {[%clk
0:02:44.5]} 8... Ne4 {[%clk 0:02:56.3]} 9. Qc2 {[%clk 0:02:36.3]} 9... Nxg5
{[%clk 0:02:55.9]} 10. Nxg5 {[%clk 0:02:36.3]} 10... Nf6 {[%clk 0:02:56.1]} 11.
O-O {[%clk 0:02:30.4]} 11... h6 {[%clk 0:02:41.3]} 12. Nf3 {[%clk 0:02:29.6]}
12... Bd6 {[%clk 0:02:39.9]} 13. e4 {[%clk 0:02:23.3]} 13... dxe4 {[%clk
0:02:39.9]} 14. Nxe4 {[%clk 0:02:20.6]} 14... Nxe4 {[%clk 0:02:39.5]} 15. Bxe4
{[%clk 0:02:20.6]} 15... O-O {[%clk 0:02:40]} 16. Rfe1 {[%clk 0:02:11.7]} 16...
Qh5 {[%clk 0:02:37.1]} 17. Ne5 {[%clk 0:02:10.9]} 17... Be6 {[%clk 0:02:19.7]}
18. Re3 {[%clk 0:02:09.1]} 18... f5 {[%clk 0:02:10]} 19. Bf3 {[%clk 0:02:06.5]}
19... Qh4 {[%clk 0:01:46]} 20. Rd1 {[%clk 0:01:43.4]} 20... f4 {[%clk
0:01:40.4]} 21. Ng6 {[%clk 0:01:35.4]} 21... Qf6 {[%clk 0:01:33.6]} 22. Rxe6
{[%clk 0:01:31.1]} 22... Qxe6 {[%clk 0:01:31.7]} 23. d5 {[%clk 0:01:24.5]} 23...
Qf5 {[%clk 0:01:21.6]} 24. Be4 {[%clk 0:01:24.5]} 24... Qf6 {[%clk 0:01:19.1]}
25. Nxf8 {[%clk 0:01:20.3]} 25... Bxf8 {[%clk 0:01:19]} 26. Qb3 {[%clk
0:01:03.2]} 26... Qf7 {[%clk 0:01:03]} 27. Qf3 {[%clk 0:00:52.5]} 27... Kh8
{[%clk 0:00:55.7]} 28. dxc6 {[%clk 0:00:49.7]} 28... bxc6 {[%clk 0:00:56]} 29.
Bxc6 {[%clk 0:00:50]} 29... Rb8 {[%clk 0:00:51.8]} 30. b3 {[%clk 0:00:49.1]}
30... Qf6 {[%clk 0:00:48.7]} 31. Be4 {[%clk 0:00:49.1]} 31... Bc5 {[%clk
0:00:48.2]} 32. Bb1 {[%clk 0:00:48.3]} 32... Rd8 {[%clk 0:00:41.3]} 33. h3
{[%clk 0:00:42.5]} 33... Rxd1+ {[%clk 0:00:40.8]} 34. Qxd1 {[%clk 0:00:42.7]}
34... Qd4 {[%clk 0:00:41.5]} 35. Qc2 {[%clk 0:00:42]} 35... Kg8 {[%clk 0:00:40]}
36. Kf1 {[%clk 0:00:37.8]} 36... Kf7 {[%clk 0:00:35.7]} 37. a4 {[%clk
0:00:36.1]} 37... a5 {[%clk 0:00:35.3]} 38. b4 {[%clk 0:00:33.3]} 38... axb4
{[%clk 0:00:34.8]} 39. Ba2+ {[%clk 0:00:32.4]} 39... Ke7 {[%clk 0:00:34]} 40. a5
{[%clk 0:00:27.5]} 40... Qa1+ {[%clk 0:00:28.9]} 41. Ke2 {[%clk 0:00:27.2]}
41... Qd4 {[%clk 0:00:29.4]} 42. Kf3 {[%clk 0:00:26.2]} 42... g5 {[%clk
0:00:28.8]} 43. a6 {[%clk 0:00:24.9]} 43... Kd6 {[%clk 0:00:28.4]} 44. Qg6+
{[%clk 0:00:23.6]} 44... Kc7 {[%clk 0:00:28.2]} 45. Qc2 {[%clk 0:00:20.9]} 45...
Qc3+ {[%clk 0:00:27.8]} 46. Qxc3 {[%clk 0:00:20.6]} 46... bxc3 {[%clk
0:00:28.7]} 47. Bb1 {[%clk 0:00:20.7]} 47... Kb6 {[%clk 0:00:28.8]} 48. Kg4
{[%clk 0:00:19.7]} 48... Kxa6 {[%clk 0:00:29.4]} 49. Kh5 {[%clk 0:00:19.9]}
49... Bf8 {[%clk 0:00:30]} 50. h4 {[%clk 0:00:18.4]} 50... gxh4 {[%clk 0:00:28]}
51. Kxh4 {[%clk 0:00:18.5]} 51... Be7+ {[%clk 0:00:28.1]} 52. Kg4 {[%clk
0:00:18.1]} 52... Bg5 {[%clk 0:00:28.5]} 53. Kf3 {[%clk 0:00:17.7]} 53... Kb5
{[%clk 0:00:29.1]} 54. Bc2 {[%clk 0:00:17.4]} 54... Kb4 {[%clk 0:00:30]} 55. Ke4
{[%clk 0:00:17.6]} 55... Ka3 {[%clk 0:00:30.9]} 56. Kd3 {[%clk 0:00:17.7]} 56...
Kb2 {[%clk 0:00:31.8]} 57. Bd1 {[%clk 0:00:18.1]} 57... Bf6 {[%clk 0:00:31.7]}
58. Ba4 {[%clk 0:00:18.1]} 58... Kc1 {[%clk 0:00:31.2]} 59. f3 {[%clk
0:00:17.1]} 59... Bg7 {[%clk 0:00:30.1]} 60. Bc2 {[%clk 0:00:17.2]} 60... Kb2
{[%clk 0:00:30.1]} 61. Ba4 {[%clk 0:00:17.7]} 61... Kc1 {[%clk 0:00:30.4]} 62.
Bc2 {[%clk 0:00:18.1]} 62... Kb2 {[%clk 0:00:30.7]} 63. Ba4 {[%clk 0:00:18.7]}
63... Kc1 {[%clk 0:00:31.3]} 1/2-1/2

[Event "*** Titled Tuesday Blitz"]
[Site "Chess.com"]
[Date "2021.03.30"]
[Round "6"]
[White "comsac"]
[Black "frenchpin"]
[Result "0-1"]
[WhiteElo "2382"]
[BlackElo "2526"]
[TimeControl "180+1"]
[EndTime "11:06:54 PDT"]
[Termination "frenchpin won on time"]

1. e4 {[%clk 0:03:00.9]} 1... e6 {[%clk 0:03:00.9]} 2. d4 {[%clk 0:03:00.5]}
2... d5 {[%clk 0:03:01.1]} 3. exd5 {[%clk 0:03:01.4]} 3... exd5 {[%clk
0:03:00.9]} 4. Nf3 {[%clk 0:03:01.9]} 4... Nc6 {[%clk 0:03:01.4]} 5. Bd3 {[%clk
0:03:01.6]} 5... Bg4 {[%clk 0:03:01.5]} 6. c3 {[%clk 0:03:02.1]} 6... Bd6 {[%clk
0:03:01.2]} 7. O-O {[%clk 0:03:02.5]} 7... Nge7 {[%clk 0:03:01.5]} 8. Nbd2
{[%clk 0:03:02.1]} 8... Qd7 {[%clk 0:03:01.6]} 9. a4 {[%clk 0:03:02.8]} 9... f6
{[%clk 0:02:54]} 10. a5 {[%clk 0:03:01.7]} 10... a6 {[%clk 0:02:53.6]} 11. Re1
{[%clk 0:02:59.6]} 11... Bf5 {[%clk 0:02:48.4]} 12. Be2 {[%clk 0:02:57.5]} 12...
O-O {[%clk 0:02:29.5]} 13. Nf1 {[%clk 0:02:56.7]} 13... Ng6 {[%clk 0:02:24]} 14.
Ng3 {[%clk 0:02:54.9]} 14... Be6 {[%clk 0:02:21.8]} 15. Qc2 {[%clk 0:02:52]}
15... Rfe8 {[%clk 0:02:21.5]} 16. Bd3 {[%clk 0:02:49.8]} 16... Bf7 {[%clk
0:02:21.6]} 17. Rxe8+ {[%clk 0:02:40.5]} 17... Rxe8 {[%clk 0:02:20.8]} 18. b4
{[%clk 0:02:37.6]} 18... Nce7 {[%clk 0:02:06.3]} 19. Bd2 {[%clk 0:02:32.4]}
19... h6 {[%clk 0:02:02.6]} 20. Nf5 {[%clk 0:02:19.3]} 20... Nf4 {[%clk
0:01:54]} 21. Bxf4 {[%clk 0:02:13.5]} 21... Bxf4 {[%clk 0:01:53.4]} 22. Re1
{[%clk 0:02:03.6]} 22... Nxf5 {[%clk 0:01:34.7]} 23. Rxe8+ {[%clk 0:02:02.7]}
23... Qxe8 {[%clk 0:01:32.7]} 24. Bxf5 {[%clk 0:02:03.6]} 24... Bh5 {[%clk
0:01:13.1]} 25. g4 {[%clk 0:02:03.7]} 25... Bf7 {[%clk 0:01:10.1]} 26. Kg2
{[%clk 0:01:51.5]} 26... g6 {[%clk 0:00:51.2]} 27. Bd3 {[%clk 0:01:49.2]} 27...
Kg7 {[%clk 0:00:50.3]} 28. h3 {[%clk 0:01:43.3]} 28... c6 {[%clk 0:00:48]} 29.
Kf1 {[%clk 0:01:12]} 29... Bc7 {[%clk 0:00:46.5]} 30. Kg2 {[%clk 0:01:04.4]}
30... Qe7 {[%clk 0:00:46.3]} 31. h4 {[%clk 0:01:03.3]} 31... Qd6 {[%clk
0:00:44.1]} 32. Qe2 {[%clk 0:01:00.2]} 32... Qf4 {[%clk 0:00:42.3]} 33. g5
{[%clk 0:00:52.3]} 33... Qg4+ {[%clk 0:00:30.2]} 34. Kf1 {[%clk 0:00:48.9]}
34... hxg5 {[%clk 0:00:25.9]} 35. hxg5 {[%clk 0:00:47.9]} 35... fxg5 {[%clk
0:00:23.4]} 36. Qe3 {[%clk 0:00:22.3]} 36... Bf4 {[%clk 0:00:19.1]} 37. Qe2
{[%clk 0:00:22.4]} 37... Qh3+ {[%clk 0:00:18.9]} 38. Kg1 {[%clk 0:00:15.9]}
38... Be6 {[%clk 0:00:18.2]} 39. Bc2 {[%clk 0:00:07.8]} 39... g4 {[%clk
0:00:13.3]} 40. Qd3 {[%clk 0:00:03.9]} 40... Bf5 {[%clk 0:00:12.3]} 41. Qe2
{[%clk 0:00:02.1]} 41... gxf3 {[%clk 0:00:04.8]} 42. Qe7+ {[%clk 0:00:01.9]}
42... Kh6 {[%clk 0:00:04.4]} 43. Qf8+ {[%clk 0:00:02]} 43... Kg5 {[%clk
0:00:04.1]} 44. Qe7+ {[%clk 0:00:02.2]} 44... Kg4 {[%clk 0:00:03.9]} 45. Bxf5+
{[%clk 0:00:02.7]} 45... gxf5 {[%clk 0:00:03.3]} 46. Qg7+ {[%clk 0:00:02.1]}
46... Bg5 {[%clk 0:00:03.5]} 0-1

[Event "*** Titled Tuesday Blitz"]
[Site "Chess.com"]
[Date "2021.03.30"]
[Round "6"]
[White "As0nchess"]
[Black "AradNazari"]
[Result "0-1"]
[WhiteElo "2616"]
[BlackElo "2509"]
[TimeControl "180+1"]
[EndTime "11:06:56 PDT"]
[Termination "AradNazari won by resignation"]

1. e4 {[%clk 0:03:00.9]} 1... e5 {[%clk 0:02:11.3]} 2. Nf3 {[%clk 0:03:00.1]}
2... Nc6 {[%clk 0:02:11.6]} 3. d4 {[%clk 0:02:59]} 3... exd4 {[%clk 0:02:12.5]}
4. Nxd4 {[%clk 0:02:59.3]} 4... Nf6 {[%clk 0:02:13.1]} 5. Nxc6 {[%clk
0:02:58.3]} 5... bxc6 {[%clk 0:02:14]} 6. e5 {[%clk 0:02:58.6]} 6... Qe7 {[%clk
0:02:13.9]} 7. Qe2 {[%clk 0:02:58.5]} 7... Nd5 {[%clk 0:02:13.9]} 8. h4 {[%clk
0:02:58.6]} 8... f6 {[%clk 0:02:11.4]} 9. c4 {[%clk 0:02:56.6]} 9... Nb4 {[%clk
0:02:08.5]} 10. a3 {[%clk 0:02:54.6]} 10... Na6 {[%clk 0:01:58.8]} 11. exf6
{[%clk 0:02:54.2]} 11... gxf6 {[%clk 0:01:56.1]} 12. Nc3 {[%clk 0:02:51.9]}
12... Qxe2+ {[%clk 0:01:51.6]} 13. Bxe2 {[%clk 0:02:51.8]} 13... Nc5 {[%clk
0:01:50.7]} 14. Be3 {[%clk 0:02:49.1]} 14... Nb3 {[%clk 0:01:40.2]} 15. Rd1
{[%clk 0:02:47.2]} 15... a5 {[%clk 0:01:40.7]} 16. Bh5+ {[%clk 0:02:40.5]} 16...
Kd8 {[%clk 0:01:37.4]} 17. O-O {[%clk 0:02:40.5]} 17... Bc5 {[%clk 0:01:27.1]}
18. Bg4 {[%clk 0:02:35.3]} 18... d6 {[%clk 0:01:21.1]} 19. Bf3 {[%clk
0:02:32.8]} 19... Bd7 {[%clk 0:01:15.9]} 20. Ne4 {[%clk 0:02:25.4]} 20... Bxe3
{[%clk 0:01:14.6]} 21. fxe3 {[%clk 0:02:26.3]} 21... Rf8 {[%clk 0:01:14.2]} 22.
Rd3 {[%clk 0:02:19.7]} 22... Rb8 {[%clk 0:01:13.4]} 23. Bd1 {[%clk 0:02:10.3]}
23... Re8 {[%clk 0:00:31.9]} 24. Nxf6 {[%clk 0:02:07.8]} 24... Nc5 {[%clk
0:00:31.4]} 25. Rc3 {[%clk 0:01:53.3]} 25... Re7 {[%clk 0:00:14.4]} 26. b3
{[%clk 0:01:52.3]} 26... Be6 {[%clk 0:00:13]} 27. g4 {[%clk 0:01:49.9]} 27...
Rg7 {[%clk 0:00:13.5]} 28. Kh2 {[%clk 0:01:48.4]} 28... Ke7 {[%clk 0:00:13.6]}
29. e4 {[%clk 0:01:43.2]} 29... h6 {[%clk 0:00:13.6]} 30. Rf4 {[%clk 0:01:31.9]}
30... Rf8 {[%clk 0:00:08.3]} 31. Rcf3 {[%clk 0:01:31.5]} 31... Rgf7 {[%clk
0:00:06.5]} 32. g5 {[%clk 0:01:30.5]} 32... hxg5 {[%clk 0:00:06.4]} 33. hxg5
{[%clk 0:01:31.4]} 33... Rh8+ {[%clk 0:00:06.7]} 34. Kg3 {[%clk 0:01:30.7]}
34... Rg7 {[%clk 0:00:07.4]} 35. b4 {[%clk 0:01:25]} 35... axb4 {[%clk
0:00:07.2]} 36. axb4 {[%clk 0:01:25.9]} 36... Rxg5+ {[%clk 0:00:07.6]} 37. Kf2
{[%clk 0:01:25.7]} 37... Rh2+ {[%clk 0:00:06.9]} 38. Ke3 {[%clk 0:01:25]} 38...
Na6 {[%clk 0:00:07.2]} 39. b5 {[%clk 0:00:56.6]} 39... cxb5 {[%clk 0:00:08.1]}
40. cxb5 {[%clk 0:00:56.7]} 40... Rxb5 {[%clk 0:00:04.9]} 41. Rg3 {[%clk
0:00:50.9]} 41... Re5 {[%clk 0:00:02.1]} 42. Rg7+ {[%clk 0:00:50.3]} 42... Kd8
{[%clk 0:00:03]} 43. Be2 {[%clk 0:00:46.5]} 43... Nc5 {[%clk 0:00:03.2]} 44. Bb5
{[%clk 0:00:44.8]} 44... Rh3+ {[%clk 0:00:04.1]} 45. Kd2 {[%clk 0:00:40]} 45...
Nb3+ {[%clk 0:00:04.6]} 46. Ke1 {[%clk 0:00:38.3]} 46... Rxb5 {[%clk 0:00:05.5]}
47. Nd5 {[%clk 0:00:34.6]} 47... Rh1+ {[%clk 0:00:06.2]} 48. Kf2 {[%clk
0:00:33.2]} 48... Rh8 {[%clk 0:00:06.4]} 49. Nc3 {[%clk 0:00:31.7]} 49... Re5
{[%clk 0:00:07.3]} 50. Ke3 {[%clk 0:00:28.9]} 50... Nc5 {[%clk 0:00:07.9]} 51.
Kd4 {[%clk 0:00:29.1]} 51... Bd7 {[%clk 0:00:08.2]} 52. Nd5 {[%clk 0:00:28.5]}
52... Ne6+ {[%clk 0:00:08.8]} 0-1

[Event "*** Titled Tuesday Blitz"]
[Site "Chess.com"]
[Date "2021.03.30"]
[Round "6"]
[White "BrandonJacobson"]
[Black "swimmerchess"]
[Result "1-0"]
[WhiteElo "2979"]
[BlackElo "2828"]
[TimeControl "180+1"]
[EndTime "11:06:57 PDT"]
[Termination "BrandonJacobson won by resignation"]

1. d4 {[%clk 0:03:00.9]} 1... Nf6 {[%clk 0:02:58.3]} 2. c4 {[%clk 0:03:01.5]}
2... g6 {[%clk 0:02:58.3]} 3. Nc3 {[%clk 0:03:01.8]} 3... Bg7 {[%clk 0:02:58.9]}
4. e4 {[%clk 0:03:02.2]} 4... O-O {[%clk 0:02:59.8]} 5. Be2 {[%clk 0:03:01.9]}
5... d6 {[%clk 0:03:00.3]} 6. h4 {[%clk 0:03:02.6]} 6... e5 {[%clk 0:02:57.6]}
7. d5 {[%clk 0:03:02.2]} 7... Na6 {[%clk 0:02:54]} 8. h5 {[%clk 0:02:47.4]} 8...
Nc5 {[%clk 0:02:54.5]} 9. h6 {[%clk 0:02:47.7]} 9... Bh8 {[%clk 0:02:53.7]} 10.
Bg5 {[%clk 0:02:48.4]} 10... a5 {[%clk 0:02:51.5]} 11. f3 {[%clk 0:02:42.7]}
11... Bd7 {[%clk 0:02:51.3]} 12. Qd2 {[%clk 0:02:42.4]} 12... Qb8 {[%clk
0:02:45.9]} 13. Nh3 {[%clk 0:02:34.7]} 13... c6 {[%clk 0:02:29]} 14. Nf2 {[%clk
0:02:30.9]} 14... cxd5 {[%clk 0:02:27.3]} 15. exd5 {[%clk 0:02:18.6]} 15... Qc7
{[%clk 0:02:11.4]} 16. O-O-O {[%clk 0:02:05.8]} 16... a4 {[%clk 0:02:10.7]} 17.
Kb1 {[%clk 0:01:59]} 17... Bf5+ {[%clk 0:02:04.1]} 18. Kc1 {[%clk 0:01:39.9]}
18... b5 {[%clk 0:01:48.1]} 19. Nxb5 {[%clk 0:01:25.9]} 19... Qb6 {[%clk
0:01:48.5]} 20. g4 {[%clk 0:01:09.9]} 20... Bd7 {[%clk 0:01:44.6]} 21. Kb1
{[%clk 0:01:07.2]} 21... a3 {[%clk 0:01:27.9]} 22. b4 {[%clk 0:00:57.4]} 22...
Na4 {[%clk 0:01:26.2]} 23. Be3 {[%clk 0:00:56.5]} 23... Qb8 {[%clk 0:01:26.2]}
24. Qc2 {[%clk 0:00:50.9]} 24... Bxb5 {[%clk 0:01:21.6]} 25. cxb5 {[%clk
0:00:44.6]} 25... Rc8 {[%clk 0:01:22.2]} 26. Bc4 {[%clk 0:00:40.7]} 26... e4
{[%clk 0:01:22.3]} 27. Bd4 {[%clk 0:00:31.9]} 27... exf3 {[%clk 0:01:18.5]} 28.
Qb3 {[%clk 0:00:28.5]} 28... Nd7 {[%clk 0:01:16.7]} 29. Bxh8 {[%clk 0:00:28.7]}
29... Kxh8 {[%clk 0:01:17.6]} 30. Ne4 {[%clk 0:00:27.7]} 30... Ne5 {[%clk
0:01:17.3]} 31. Rc1 {[%clk 0:00:25]} 31... Qb6 {[%clk 0:01:09.3]} 32. Rhd1
{[%clk 0:00:18.1]} 32... Rc7 {[%clk 0:00:43.1]} 33. Bf1 {[%clk 0:00:18]} 33...
Rxc1+ {[%clk 0:00:38.4]} 34. Rxc1 {[%clk 0:00:18.3]} 34... Qd4 {[%clk 0:00:39]}
35. Nc3 {[%clk 0:00:17.1]} 35... Nb6 {[%clk 0:00:38]} 36. Rd1 {[%clk 0:00:15.7]}
36... Qf2 {[%clk 0:00:37.7]} 37. Qc2 {[%clk 0:00:15.4]} 37... Qe3 {[%clk
0:00:36.7]} 38. Qd2 {[%clk 0:00:13.4]} 38... Qg1 {[%clk 0:00:26.1]} 39. Bd3
{[%clk 0:00:11.3]} 39... Qxg4 {[%clk 0:00:25.8]} 40. Bc2 {[%clk 0:00:11.2]}
40... Qxb4+ {[%clk 0:00:25.8]} 41. Bb3 {[%clk 0:00:11.7]} 41... Rc8 {[%clk
0:00:25.9]} 42. Rc1 {[%clk 0:00:10.5]} 42... Kg8 {[%clk 0:00:18.5]} 43. Qg5
{[%clk 0:00:08.5]} 43... Qd4 {[%clk 0:00:15.2]} 44. Qf6 {[%clk 0:00:06.6]} 44...
Qd3+ {[%clk 0:00:15.7]} 45. Ka1 {[%clk 0:00:06.5]} 45... Kf8 {[%clk 0:00:13.9]}
46. Qxd6+ {[%clk 0:00:05.3]} 46... Kg8 {[%clk 0:00:14.2]} 47. Qxe5 {[%clk
0:00:05.5]} 47... Kf8 {[%clk 0:00:13.9]} 48. d6 {[%clk 0:00:05.4]} 1-0

[Event "*** Titled Tuesday Blitz"]
[Site "Chess.com"]
[Date "2021.03.30"]
[Round "6"]
[White "jefferyx"]
[Black "vinniethepooh"]
[Result "1/2-1/2"]
[WhiteElo "2965"]
[BlackElo "2670"]
[TimeControl "180+1"]
[EndTime "11:06:57 PDT"]
[Termination "Game drawn by repetition"]

1. e4 {[%clk 0:02:57.1]} 1... c5 {[%clk 0:03:00.3]} 2. Nc3 {[%clk 0:02:56]} 2...
d6 {[%clk 0:02:59.9]} 3. d4 {[%clk 0:02:56.2]} 3... cxd4 {[%clk 0:03:00.8]} 4.
Qxd4 {[%clk 0:02:57.1]} 4... Nc6 {[%clk 0:03:01.5]} 5. Qd2 {[%clk 0:02:57.7]}
5... g6 {[%clk 0:03:02]} 6. b3 {[%clk 0:02:58.1]} 6... Bg7 {[%clk 0:03:02.6]} 7.
Bb2 {[%clk 0:02:58.1]} 7... Nf6 {[%clk 0:03:00.8]} 8. O-O-O {[%clk 0:02:58.3]}
8... O-O {[%clk 0:03:01.4]} 9. h4 {[%clk 0:02:57.3]} 9... h5 {[%clk 0:02:57.3]}
10. f3 {[%clk 0:02:57.1]} 10... Qa5 {[%clk 0:02:57.7]} 11. Kb1 {[%clk 0:02:57]}
11... e5 {[%clk 0:02:57.7]} 12. Nge2 {[%clk 0:02:56.7]} 12... Be6 {[%clk
0:02:57]} 13. Nb5 {[%clk 0:02:47.3]} 13... Qxd2 {[%clk 0:02:44.5]} 14. Rxd2
{[%clk 0:02:47.2]} 14... d5 {[%clk 0:02:45.3]} 15. Nc7 {[%clk 0:02:42.5]} 15...
Rad8 {[%clk 0:02:45.8]} 16. Nxe6 {[%clk 0:02:34.4]} 16... fxe6 {[%clk
0:02:46.7]} 17. Ng3 {[%clk 0:02:34.6]} 17... Bh6 {[%clk 0:02:41.3]} 18. Rd1
{[%clk 0:02:33.2]} 18... dxe4 {[%clk 0:01:46.5]} 19. Bc4 {[%clk 0:02:32.3]}
19... exf3 {[%clk 0:01:46.7]} 20. Bxe6+ {[%clk 0:02:32.1]} 20... Kg7 {[%clk
0:01:45.4]} 21. gxf3 {[%clk 0:02:33]} 21... Nd4 {[%clk 0:01:45.3]} 22. Bc4
{[%clk 0:02:15.9]} 22... Nxf3 {[%clk 0:01:42.2]} 23. Bd3 {[%clk 0:02:16.5]}
23... Ng4 {[%clk 0:01:31.6]} 24. Ne4 {[%clk 0:01:53.6]} 24... Be3 {[%clk
0:01:03.9]} 25. Rh3 {[%clk 0:01:43.6]} 25... Bd4 {[%clk 0:01:00.8]} 26. Bc1
{[%clk 0:01:43.1]} 26... Be3 {[%clk 0:00:57.5]} 27. Ba3 {[%clk 0:01:42.6]} 27...
Rf4 {[%clk 0:00:50.4]} 28. Rf1 {[%clk 0:01:35.6]} 28... Nd2+ {[%clk 0:00:33.3]}
29. Nxd2 {[%clk 0:01:35.4]} 29... Bxd2 {[%clk 0:00:34.2]} 30. Rg1 {[%clk
0:01:32.6]} 30... Bc3 {[%clk 0:00:31.7]} 31. Be7 {[%clk 0:01:24.9]} 31... Rd7
{[%clk 0:00:28.3]} 32. Bg5 {[%clk 0:01:25.3]} 32... Rf8 {[%clk 0:00:20.2]} 33.
Bb5 {[%clk 0:01:24.5]} 33... Rc7 {[%clk 0:00:17.1]} 34. Be2 {[%clk 0:01:23]}
34... Bd4 {[%clk 0:00:17.1]} 35. Rg2 {[%clk 0:01:20]} 35... Rcf7 {[%clk
0:00:15.1]} 36. c3 {[%clk 0:01:18.9]} 36... Bb6 {[%clk 0:00:11.9]} 37. Bxg4
{[%clk 0:01:14.7]} 37... Rf1+ {[%clk 0:00:12.2]} 38. Bc1 {[%clk 0:01:10.6]}
38... hxg4 {[%clk 0:00:12.4]} 39. Rxg4 {[%clk 0:01:11.5]} 39... Re1 {[%clk
0:00:07.8]} 40. h5 {[%clk 0:00:32.4]} 40... Rff1 {[%clk 0:00:08.1]} 41. hxg6
{[%clk 0:00:33.3]} 41... Rxc1+ {[%clk 0:00:07.9]} 42. Kb2 {[%clk 0:00:34.2]}
42... Rb1+ {[%clk 0:00:07.1]} 43. Ka3 {[%clk 0:00:34.6]} 43... Rh1 {[%clk
0:00:05.5]} 44. Rf3 {[%clk 0:00:25.8]} 44... Rbf1 {[%clk 0:00:05.6]} 45. Rd3
{[%clk 0:00:26.4]} 45... Rd1 {[%clk 0:00:06.1]} 46. Rf3 {[%clk 0:00:27.1]} 46...
Rdf1 {[%clk 0:00:06.3]} 47. Rd3 {[%clk 0:00:27.3]} 47... Rf6 {[%clk 0:00:05.7]}
48. Rd7+ {[%clk 0:00:27.2]} 48... Kg8 {[%clk 0:00:06.3]} 49. Rxb7 {[%clk
0:00:23.9]} 49... Rh6 {[%clk 0:00:06.1]} 50. Rb8+ {[%clk 0:00:18.4]} 50... Kg7
{[%clk 0:00:06.6]} 51. Rb7+ {[%clk 0:00:19.3]} 51... Kg8 {[%clk 0:00:07.2]} 52.
Rb8+ {[%clk 0:00:15.3]} 52... Rf8 {[%clk 0:00:07.4]} 53. Rb7 {[%clk 0:00:15.4]}
53... Rf6 {[%clk 0:00:03.3]} 1/2-1/2

[Event "*** Titled Tuesday Blitz"]
[Site "Chess.com"]
[Date "2021.03.30"]
[Round "6"]
[White "gilbert_gm"]
[Black "Fy_Rakotomaharo"]
[Result "1-0"]
[WhiteElo "2576"]
[BlackElo "2704"]
[TimeControl "180+1"]
[EndTime "11:06:58 PDT"]
[Termination "gilbert_gm won by resignation"]

1. d4 {[%clk 0:02:53.6]} 1... Nf6 {[%clk 0:03:00]} 2. Nf3 {[%clk 0:02:54.5]}
2... g6 {[%clk 0:02:59.9]} 3. g3 {[%clk 0:02:53.2]} 3... Bg7 {[%clk 0:02:59.8]}
4. Bg2 {[%clk 0:02:53.8]} 4... d5 {[%clk 0:02:59.7]} 5. O-O {[%clk 0:02:54.7]}
5... O-O {[%clk 0:02:59.7]} 6. c4 {[%clk 0:02:55.4]} 6... c6 {[%clk 0:03:00.3]}
7. Nc3 {[%clk 0:02:55.6]} 7... dxc4 {[%clk 0:03:00.3]} 8. Qc2 {[%clk 0:02:51.8]}
8... Na6 {[%clk 0:02:53.9]} 9. a3 {[%clk 0:02:41.4]} 9... Nc7 {[%clk 0:02:47]}
10. e4 {[%clk 0:02:39.2]} 10... Bg4 {[%clk 0:02:46.1]} 11. Be3 {[%clk
0:02:37.9]} 11... Nd7 {[%clk 0:02:35.7]} 12. Rad1 {[%clk 0:02:32.5]} 12... e5
{[%clk 0:02:13.8]} 13. dxe5 {[%clk 0:02:30.6]} 13... Qe8 {[%clk 0:02:05.6]} 14.
h3 {[%clk 0:02:25.6]} 14... Bxf3 {[%clk 0:02:03.9]} 15. Bxf3 {[%clk 0:02:26.5]}
15... Nxe5 {[%clk 0:02:04.3]} 16. Be2 {[%clk 0:02:25.1]} 16... Qe6 {[%clk
0:01:59.7]} 17. Kg2 {[%clk 0:02:23.1]} 17... f5 {[%clk 0:01:43.3]} 18. f4 {[%clk
0:02:18.6]} 18... Nd3 {[%clk 0:01:43.5]} 19. Bxd3 {[%clk 0:02:11.8]} 19... cxd3
{[%clk 0:01:43.8]} 20. Qxd3 {[%clk 0:01:58.1]} 20... fxe4 {[%clk 0:01:40.5]} 21.
Qxe4 {[%clk 0:01:48.7]} 21... Qxe4+ {[%clk 0:01:20.3]} 22. Nxe4 {[%clk
0:01:49.6]} 22... Rfe8 {[%clk 0:01:18.4]} 23. Kf3 {[%clk 0:01:47.1]} 23... Bxb2
{[%clk 0:01:18]} 24. Rb1 {[%clk 0:01:43.8]} 24... Bg7 {[%clk 0:00:58.1]} 25.
Rxb7 {[%clk 0:01:43.3]} 25... Nd5 {[%clk 0:00:58.6]} 26. Bxa7 {[%clk 0:01:41.3]}
26... Re6 {[%clk 0:00:38.6]} 27. Rb8+ {[%clk 0:01:28.2]} 27... Rxb8 {[%clk
0:00:32.4]} 28. Bxb8 {[%clk 0:01:29.1]} 28... Re8 {[%clk 0:00:24.8]} 29. Bd6
{[%clk 0:01:21.3]} 29... Ra8 {[%clk 0:00:25.3]} 30. Rc1 {[%clk 0:01:18.2]} 30...
Ra6 {[%clk 0:00:24.6]} 31. Rb1 {[%clk 0:01:12.9]} 31... Rb6 {[%clk 0:00:03.4]}
32. Rxb6 {[%clk 0:01:01.7]} 32... Nxb6 {[%clk 0:00:04.3]} 33. Bc5 {[%clk
0:01:01.8]} 33... Na4 {[%clk 0:00:04.6]} 34. Bb4 {[%clk 0:01:02.2]} 34... Kf7
{[%clk 0:00:04.9]} 35. Nc5 {[%clk 0:00:58.7]} 35... Nb6 {[%clk 0:00:04.3]} 36.
a4 {[%clk 0:00:41.1]} 36... Nd5 {[%clk 0:00:04.7]} 37. Bd2 {[%clk 0:00:39.7]}
37... Bd4 {[%clk 0:00:04.8]} 38. Nd3 {[%clk 0:00:30.7]} 38... c5 {[%clk
0:00:03.8]} 39. a5 {[%clk 0:00:27.2]} 39... c4 {[%clk 0:00:03.3]} 40. Ke4 {[%clk
0:00:20.5]} 40... c3 {[%clk 0:00:03.4]} 41. Bc1 {[%clk 0:00:10.2]} 41... Be3
{[%clk 0:00:01.4]} 42. Bxe3 {[%clk 0:00:09.8]} 42... Nf6+ {[%clk 0:00:02.3]} 43.
Kf3 {[%clk 0:00:10]} 43... Nh5 {[%clk 0:00:03.2]} 44. Bd4 {[%clk 0:00:09.5]}
44... Ke6 {[%clk 0:00:02.5]} 45. g4 {[%clk 0:00:08.9]} 45... Kd5 {[%clk
0:00:03.4]} 46. Bxc3 {[%clk 0:00:08.8]} 46... Kc4 {[%clk 0:00:03.8]} 47. gxh5
{[%clk 0:00:09.1]} 47... Kxd3 {[%clk 0:00:04.1]} 48. hxg6 {[%clk 0:00:09.3]}
48... Kxc3 {[%clk 0:00:04.6]} 1-0